bitfinex/quotes_SOLUSD_20260208
["timestamp","ask_amount","ask_price","bid_price","bid_amount"]
[1770578338970,13.78964399,88.1,88.08,0.2]
[1770578339773,11.34751773,88.125,88.08,13.98964399]
[1770578339965,11.34751773,88.125,88.09,13.78964399]
[1770578340881,28.36099306,88.15,88.092,3.20614437]
[1770578341067,3.25272908,88.139,88.101,3.20614437]
[1770578341473,3.25272908,88.139,88.11,13.78964399]
[1770578342477,11.34584401,88.138,88.102,11.35048012]
[1770578342662,3.25272908,88.137,88.102,14.55662449]
[1770578343162,3.25272908,88.137,88.103,3.20614437]
[1770578343978,3.25272908,88.155,88.121,3.20614437]
[1770578344171,3.25272908,88.154,88.121,3.20614437]
[1770578344567,3.25272908,88.154,88.122,14.55404841]
[1770578345569,3.25272908,88.154,88.123,3.20614437]
[1770578346586,3.25272908,88.163,88.13,13.78964399]
[1770578346967,3.25272908,88.163,88.131,11.34674518]
[1770578349967,3.25272908,88.163,88.131,14.55288955]
[1770578350168,3.25272908,88.17,88.141,3.20614437]
[1770578350479,3.25272908,88.17,88.15,13.78964399]
[1770578350985,3.25272908,88.17,88.141,3.20614437]
[1770578351489,3.25272908,88.17,88.142,14.55147349]
[1770578352290,3.25272908,88.185,88.151,3.20614437]
[1770578353591,3.25272908,88.185,88.123,3.0]
[1770578353592,3.25272908,88.183,88.14,13.78964399]
[1770578353803,3.25272908,88.159,88.125,11.34741529]
[1770578353974,3.00853712,88.159,88.125,11.34741529]
[1770578355292,11.34327003,88.158,88.116,28.37144716]
[1770578355470,11.34327003,88.158,88.117,3.15516321]
[1770578355870,3.13471368,88.157,88.117,3.15516321]
[1770578357298,3.13471368,88.149,88.114,11.34893433]
[1770578357877,3.13471368,88.149,88.115,3.15516321]
[1770578359791,3.13471368,88.167,88.131,3.15516321]
[1770578359978,3.13471368,88.166,88.121,3.15516321]
[1770578360286,3.13471368,88.159,88.121,3.15516321]
[1770578361397,3.13471368,88.159,88.097,56.75550779]
[1770578361398,3.13471368,88.139,88.103,11.35028515]
[1770578361775,3.13471368,88.139,88.098,11.35089343]
[1770578362679,3.13471368,88.129,88.098,11.35089343]
[1770578364172,3.13471368,88.129,88.101,3.15516321]
[1770578364400,3.13471368,88.129,88.1,13.79057033]
[1770578364401,3.13471368,88.137,88.111,3.15516321]
[1770578365981,3.13471368,88.149,88.113,3.15516321]
[1770578368606,3.13471368,88.147,88.115,3.15516321]
[1770578369599,3.13471368,88.147,88.116,11.34867674]
[1770578370005,3.13471368,88.145,88.109,11.34951287]
[1770578372504,3.13471368,88.143,88.105,3.15516321]
[1770578373303,3.13471368,88.139,88.105,3.15516321]
[1770578376399,3.13471368,88.139,88.11,5.14986823]
[1770578376599,3.13471368,88.139,88.111,3.15516321]
[1770578378210,3.13471368,88.139,88.113,3.15516321]
[1770578378415,3.13471368,88.149,88.115,3.15516321]
[1770578380886,3.13471368,88.158,88.117,3.15516321]
[1770578381811,3.13471368,88.158,88.121,3.15516321]
[1770578382105,3.13471368,88.158,88.131,3.15516321]
[1770578383102,3.13471368,88.158,88.121,14.50319602]
[1770578383403,3.13471368,88.158,88.116,28.37169186]
[1770578383404,3.13471368,88.139,88.103,11.35031425]
[1770578383789,11.3433987,88.157,88.103,11.35031425]
[1770578383790,3.13471368,88.129,88.103,11.35031425]
[1770578385307,11.34713144,88.128,88.098,11.35093853]
[1770578385602,3.11952847,88.127,88.098,11.35093853]
[1770578386407,3.11952847,88.119,88.081,11.35318627]
[1770578387504,3.11952847,88.119,88.081,14.35654146]
[1770578388312,3.11952847,88.109,88.081,14.35654146]
[1770578388510,3.11952847,88.109,88.08,0.2]
[1770578388715,3.11952847,88.107,88.08,0.2]
[1770578389909,3.11952847,88.107,88.081,3.00335519]
[1770578390302,3.11952847,88.107,88.08,0.2]
[1770578390508,3.11952847,88.109,88.083,3.00335519]
[1770578391220,3.11952847,88.109,88.082,11.35305737]
[1770578391923,3.11952847,88.109,88.08,0.2]
[1770578392595,3.11952847,88.099,88.08,0.2]
[1770578398015,3.11952847,88.099,88.08,11.55330857]
[1770578398219,3.11952847,88.109,88.081,3.00335519]
[1770578399012,3.11952847,88.109,88.08,16.7031768]
[1770578399211,3.11952847,88.109,88.081,3.00335519]
[1770578401135,3.11952847,88.108,88.081,3.00335519]
[1770578401450,3.11952847,88.152,88.091,3.00335519]
[1770578401728,3.11952847,88.139,88.101,3.00335519]
[1770578401925,3.11952847,88.119,88.082,11.35305737]
[1770578402328,3.11952847,88.109,88.08,0.2]
[1770578403214,3.11952847,88.099,88.08,0.2]
[1770578403828,3.11952847,88.099,88.08,11.55326095]
[1770578404025,3.11952847,88.099,88.08,0.2]
[1770578405034,3.11952847,88.111,88.082,3.00335519]
[1770578405234,3.11952847,88.111,88.083,11.35292848]
[1770578405434,3.11952847,88.111,88.084,3.00335519]
[1770578406636,3.11952847,88.111,88.085,11.35267071]
[1770578407036,3.11952847,88.111,88.091,3.00335519]
[1770578407337,3.11952847,88.119,88.1,5.14986823]
[1770578407918,3.11952847,88.126,88.101,3.00335519]
[1770578408241,3.11952847,88.143,88.12,5.14986823]
[1770578408624,3.11952847,88.143,88.121,11.34803281]
[1770578409528,3.11952847,88.143,88.116,11.34858524]
[1770578409842,3.11952847,88.143,88.12,11.34814246]
[1770578410024,3.11952847,88.143,88.12,16.49801069]
[1770578410430,3.11952847,88.143,88.12,11.34814246]
[1770578413357,3.11952847,88.143,88.12,5.14986823]
[1770578414226,3.11952847,88.143,88.114,14.35228952]
[1770578414440,5.14986823,88.16,69.98,19.3814445]
[1770578414441,3.11952847,88.129,88.09,5.14986823]
[1770578415327,3.11952847,88.129,88.101,11.350596]
[1770578415642,3.11952847,88.129,88.1,5.14986823]
[1770578415840,2.92215585,88.136,88.11,5.14986823]
[1770578416045,2.92215585,88.136,88.11,8.04114878]
[1770578416543,2.92215585,88.177,88.121,2.89128055]
[1770578416730,2.92215585,88.177,88.13,5.14986823]
[1770578416731,5.14986823,88.17,88.13,5.14986823]
[1770578417038,2.92215585,88.169,88.13,5.14986823]
[1770578417639,2.92215585,88.169,88.131,2.89128055]
[1770578417846,2.92215585,88.167,88.132,11.34661643]
[1770578418343,2.92215585,88.167,88.14,5.14986823]
[1770578418845,2.92215585,88.167,88.132,14.23789698]
[1770578420951,2.92215585,88.165,88.133,2.89128055]
[1770578421150,2.92215585,88.165,88.14,5.14720813]
[1770578421950,2.92215585,88.165,88.141,2.89128055]
[1770578423330,2.92215585,88.165,88.142,11.34532912]
[1770578424349,2.92215585,88.174,88.143,2.89128055]
[1770578424550,2.92215585,88.174,88.15,5.14720813]
[1770578424937,2.92215585,88.174,88.151,2.89128055]
[1770578425432,14.26143852,88.189,88.161,2.89128055]
[1770578425750,2.92215585,88.189,88.161,2.89128055]
[1770578426133,2.92215585,88.189,88.17,5.14720813]
[1770578426341,2.92215585,88.189,88.161,2.89128055]
[1770578427238,28.34299658,88.206,88.16,5.14720813]
[1770578427239,2.92215585,88.206,88.18,8.03848868]
[1770578427449,2.92215585,88.206,88.181,2.89128055]
[1770578427753,2.92215585,88.206,88.181,14.2315359]
[1770578427937,2.92215585,88.206,88.18,5.14720813]
[1770578428141,2.92215585,88.206,88.17,5.14720813]
[1770578428441,61.81094161,88.24,88.183,2.89128055]
[1770578428442,2.92215585,88.211,88.183,2.89128055]
[1770578430145,2.92215585,88.211,88.163,28.35634946]
[1770578430146,2.92215585,88.211,88.19,5.14720813]
[1770578430350,2.92215585,88.222,88.191,2.89128055]
[1770578430553,2.92215585,88.222,88.2,5.14720813]
[1770578430752,2.92215585,88.221,88.184,11.33992561]
[1770578432854,2.92215585,88.221,88.185,2.89128055]
[1770578433936,2.92215585,88.221,88.187,2.89128055]
[1770578434663,2.92215585,88.228,88.191,2.89128055]
[1770578435355,2.92215585,88.228,88.186,39.68883949]
[1770578435356,2.92215585,88.219,88.186,11.33966842]
[1770578436143,2.92215585,88.219,88.186,14.23094897]
[1770578436444,2.92215585,88.219,88.187,2.89128055]
[1770578439058,2.92215585,88.235,88.2,5.14720813]
[1770578439241,2.92215585,88.229,88.194,2.89128055]
[1770578439648,5.14720813,88.22,88.188,11.33941125]
[1770578439855,2.92215585,88.219,88.188,11.33941125]
[1770578440055,2.92215585,88.219,88.183,11.3400053]
[1770578440237,2.92215585,88.219,88.182,0.26770134]
[1770578440441,11.33334577,88.236,88.179,2.89128055]
[1770578440442,2.92215585,88.206,88.179,2.89128055]
[1770578441055,2.92215585,88.216,88.181,2.89128055]
[1770578441455,2.92215585,88.229,88.191,2.89128055]
[1770578441657,2.92215585,88.239,88.21,8.03848868]
[1770578441970,2.92215585,88.239,88.21,2.89128055]
[1770578443358,2.92215585,88.239,88.21,14.22778849]
[1770578444160,11.33298578,88.238,88.21,14.22778849]
[1770578444348,2.92215585,88.229,88.192,2.89128055]
[1770578444853,2.92215585,88.229,88.198,11.33809836]
[1770578445257,2.92215585,88.229,88.198,14.25546551]
[1770578445458,33.4790593,88.24,87.603,169.6829342]
[1770578445459,2.84752062,88.246,88.211,2.91736715]
[1770578447261,2.84752062,88.249,88.211,2.91736715]
[1770578447469,2.84752062,88.249,88.213,2.91736715]
[1770578447647,2.84752062,88.249,88.221,2.91736715]
[1770578448371,2.84752062,88.249,88.221,1.81736715]
[1770578449261,2.84752062,88.248,88.212,11.33632612]
[1770578449769,2.84752062,88.239,88.2,5.14720813]
[1770578450349,2.84752062,88.239,88.201,2.26286594]
[1770578450872,2.84752062,88.238,88.203,2.26286594]
[1770578451054,2.84752062,88.238,88.21,5.14720813]
[1770578451262,2.84752062,88.249,88.211,2.2613183]
[1770578452266,2.84752062,88.248,88.212,11.33632612]
[1770578452572,2.84752062,88.248,88.213,2.25978843]
[1770578453149,2.84752062,88.248,88.212,11.33632612]
[1770578453355,2.84752062,88.239,88.207,11.33685326]
[1770578454473,2.84752062,88.237,88.202,2.25686661]
[1770578457474,2.84752062,88.237,88.203,13.59021727]
[1770578458368,2.84752062,88.237,88.204,2.25138855]
[1770578459574,2.84752062,88.235,88.198,2.25005813]
[1770578460372,2.84752062,88.233,88.201,11.33773993]
[1770578460678,2.84752062,88.233,88.202,2.248743]
[1770578461576,14.18044863,88.239,88.211,2.24744297]
[1770578462172,2.84752062,88.238,88.211,2.24744297]
[1770578463977,0.1,88.25,88.213,2.24488753]
[1770578464281,0.1,88.25,88.231,2.24363178]
[1770578464581,2.84752062,88.281,88.241,2.14363178]
[1770578464876,2.84752062,88.281,88.251,2.14363178]
[1770578465074,2.84752062,88.281,88.212,39.67714142]
[1770578465075,7.09890697,88.283,88.261,2.14239046]
[1770578465469,2.84752062,88.289,88.261,2.14239046]
[1770578465773,2.84752062,88.287,88.251,2.14239046]
[1770578466175,7.20419416,88.317,88.281,2.0411634]
[1770578466480,2.84752062,88.316,88.28,5.14720813]
[1770578466670,2.84752062,88.309,88.27,5.14720813]
[1770578467279,2.84752062,88.299,88.26,5.14720813]
[1770578467575,39.63041804,88.316,88.246,11.33194641]
[1770578467576,2.84752062,88.289,88.246,11.33194641]
[1770578467781,2.84752062,88.279,88.241,1.83995043]
[1770578467969,2.84752062,88.279,88.252,11.33118796]
[1770578468278,46.81181851,88.316,88.236,28.33289988]
[1770578468279,2.84752062,88.277,88.243,1.83875139]
[1770578469063,2.84752062,88.277,88.242,11.33247206]
[1770578469772,2.84752062,88.259,88.22,5.14720813]
[1770578469978,2.84752062,88.259,88.226,11.33440091]
[1770578470159,11.33041763,88.258,88.214,11.3360691]
[1770578470475,2.84752062,88.257,88.214,13.1724987]
[1770578470667,2.84752062,88.257,88.221,1.8364296]
[1770578471058,2.84752062,88.257,88.214,39.67624186]
[1770578471059,7.17956646,88.278,88.251,1.83530612]
[1770578471264,7.17956646,88.278,88.26,5.14720813]
[1770578472285,5.34639595,88.278,88.271,11.32874896]
[1770578472490,3.09205342,88.299,88.271,11.32874896]
[1770578472789,3.09205342,88.309,88.28,5.14720813]
[1770578474290,3.09205342,88.309,88.271,11.32874896]
[1770578474673,3.09205342,88.308,88.28,5.14720813]
[1770578477588,3.09205342,88.308,88.281,11.3274657]
[1770578480993,3.09205342,88.308,88.28,5.12948171]
[1770578481869,3.09205342,88.308,88.271,11.32874896]
[1770578484492,3.09205342,88.308,88.28,5.12948171]
[1770578484696,3.09205342,88.319,88.28,5.12948171]
[1770578484998,3.09205342,88.318,88.28,5.12948171]
[1770578485296,3.09205342,88.309,88.271,11.32874896]
[1770578485678,3.09205342,88.299,88.265,11.3294199]
[1770578487682,3.09205342,88.298,88.265,11.3294199]
[1770578488393,3.09205342,88.289,88.26,11.33015932]
[1770578488697,3.09205342,88.289,88.25,5.12948171]
[1770578488889,3.09205342,88.279,88.24,5.12948171]
[1770578489206,3.09205342,88.269,88.225,28.33641546]
[1770578489701,5.13032502,88.306,88.23,5.12948171]
[1770578489702,3.09205342,88.267,88.23,5.12948171]
[1770578490676,3.09205342,88.267,88.24,5.12948171]
[1770578490886,3.09205342,88.279,88.241,11.33260049]
[1770578492292,3.09205342,88.294,88.25,5.12948171]
[1770578492489,7.10617342,88.297,88.27,5.12948171]
[1770578492490,3.09205342,88.296,88.27,5.12948171]
[1770578492698,3.09205342,88.289,88.25,5.12948171]
[1770578492898,18.43164145,88.297,88.25,5.12948171]
[1770578492899,3.09205342,88.287,88.251,11.33131635]
[1770578493098,7.10617342,88.297,88.27,13.74810782]
[1770578493300,7.10617342,88.297,88.251,39.65960724]
[1770578493301,7.10617342,88.297,88.28,13.74810782]
[1770578493483,10.19822684,88.297,88.27,13.74810782]
[1770578494486,10.19822684,88.297,88.28,13.74810782]
[1770578495305,0.1,88.32,88.291,3.01135052]
[1770578495503,0.1,88.32,88.3,13.74810782]
[1770578496803,0.1,88.32,88.292,11.32605445]
[1770578497110,13.84810782,88.32,88.283,11.32711027]
[1770578497309,2.78913911,88.319,88.283,11.32711027]
[1770578498280,13.84810782,88.32,88.283,11.32711027]
[1770578498281,2.78913911,88.317,88.283,11.32711027]
[1770578500909,2.78913911,88.315,88.283,11.32711027]
[1770578501698,2.78913911,88.315,88.284,3.01135052]
[1770578502613,2.78913911,88.315,88.29,13.74810782]
[1770578502999,2.78913911,88.315,88.29,16.75945834]
[1770578503308,2.88913911,88.32,88.291,3.01135052]
[1770578504599,2.88913911,88.32,88.292,11.32605445]
[1770578505119,2.93583306,88.309,88.276,11.32808115]
[1770578505789,2.93583306,88.309,88.257,28.32619526]
[1770578505790,2.93583306,88.299,88.267,2.87138805]
[1770578508193,2.93583306,88.298,88.268,11.329134]
[1770578508708,2.93583306,88.298,88.268,14.20052205]
[1770578509110,2.93583306,88.289,88.252,11.33108031]
[1770578509294,2.93583306,88.279,88.251,11.33128052]
[1770578510108,2.93583306,88.279,88.246,11.33187455]
[1770578510515,2.93583306,88.289,88.251,2.87138805]
[1770578511211,11.32658721,88.288,88.251,2.87138805]
[1770578511516,11.32658721,88.288,88.262,2.87138805]
[1770578511517,14.26242027,88.288,88.262,2.87138805]
[1770578512301,2.93583306,88.297,88.262,2.87138805]
[1770578513805,11.32529735,88.298,88.27,5.13138479]
[1770578514002,11.32529735,88.298,88.271,2.87138805]
[1770578515099,2.93583306,88.297,88.271,2.87138805]
[1770578516608,2.93583306,88.297,88.273,2.87138805]
[1770578516919,2.93583306,88.289,88.265,11.3294966]
[1770578518420,2.93583306,88.289,88.257,2.87138805]
[1770578519016,2.93583306,88.287,88.242,2.87138805]
[1770578519196,2.93583306,88.287,88.255,11.33077986]
[1770578519618,2.93583306,88.287,88.256,2.87138805]
[1770578520623,2.93583306,88.287,88.258,2.87138805]
[1770578522222,2.93583306,88.286,88.258,2.87138805]
[1770578522407,2.93583306,88.284,88.251,14.20264874]
[1770578522725,2.93583306,88.284,88.255,11.33069428]
[1770578523103,2.93583306,88.284,88.259,11.33028926]
[1770578523810,2.93583306,88.284,88.254,11.33089174]
[1770578525716,2.93583306,88.284,88.255,2.87138805]
[1770578527633,2.93583306,88.284,88.251,0.26770134]
[1770578527634,2.93583306,88.284,88.26,5.13138479]
[1770578527814,2.93583306,88.297,88.271,2.87138805]
[1770578528914,2.93583306,88.296,88.271,2.87138805]
[1770578529221,2.93583306,88.296,88.264,2.87138805]
[1770578529626,11.32566963,88.295,88.261,11.33003251]
[1770578529829,5.13138479,88.28,88.247,11.33179692]
[1770578530013,2.93583306,88.279,88.252,2.87138805]
[1770578532514,2.93583306,88.278,88.252,2.87138805]
[1770578533039,2.93583306,88.278,88.253,11.33105956]
[1770578534018,2.93583306,88.278,88.254,2.87138805]
[1770578537845,2.98087666,88.298,88.271,2.81185953]
[1770578539849,2.98087666,88.298,88.273,2.81185953]
[1770578540320,2.98087666,88.298,88.28,5.13138479]
[1770578540516,7.09989406,88.312,88.291,2.81185953]
[1770578540836,2.98087666,88.309,88.272,11.32862062]
[1770578541435,2.98087666,88.309,88.273,2.81185953]
[1770578541631,2.98087666,88.309,88.28,5.13098341]
[1770578541830,2.98087666,88.309,88.281,11.3274657]
[1770578542035,2.98087666,88.309,88.28,5.13098341]
[1770578542036,11.32400235,88.308,88.28,5.13098341]
[1770578542241,11.32400235,88.308,88.281,2.81185953]
[1770578542538,2.98087666,88.299,88.267,11.32922517]
[1770578543219,2.98087666,88.299,88.258,2.81185953]
[1770578543414,2.98087666,88.299,88.263,11.32975847]
[1770578543619,2.98087666,88.299,88.26,5.13098341]
[1770578543841,2.98087666,88.299,88.259,11.33024413]
[1770578544145,2.98087666,88.289,88.259,11.33024413]
[1770578545140,2.98087666,88.289,88.251,11.33131635]
[1770578545322,2.98087666,88.289,88.252,2.81185953]
[1770578545522,2.98087666,88.287,88.252,2.81185953]
[1770578548233,2.98087666,88.285,88.253,11.33105956]
[1770578548437,5.13098341,88.28,88.252,0.26770134]
[1770578548739,2.98087666,88.279,88.242,0.26770134]
[1770578550248,2.98087666,88.279,88.245,11.33206458]
[1770578551749,11.32785065,88.278,88.245,11.33206458]
[1770578552047,2.98087666,88.277,88.245,11.33206458]
[1770578554350,56.61932559,88.31,88.251,2.81185953]
[1770578554351,14.3081849,88.283,88.251,2.81185953]
[1770578554854,2.98087666,88.282,88.251,2.81185953]
[1770578555835,2.98087666,88.282,88.26,7.94284294]
[1770578556051,2.98087666,88.282,88.261,2.81185953]
[1770578556253,11.32666584,88.288,88.261,2.81185953]
[1770578556545,2.98087666,88.287,88.261,2.81185953]
[1770578557465,2.98087666,88.287,88.251,11.33131635]
[1770578557466,2.98087666,88.309,88.271,2.81185953]
[1770578558251,2.98087666,88.307,88.273,2.81185953]
[1770578558554,2.98087666,88.307,88.266,11.32937669]
[1770578559245,2.98087666,88.307,88.266,14.14123622]
[1770578559449,2.98087666,88.307,88.272,14.14048015]
[1770578560253,2.98087666,88.305,88.273,2.81185953]
[1770578560555,2.98087666,88.303,88.273,2.81185953]
[1770578561952,36.64,88.302,88.274,11.32836395]
[1770578562159,2.98087666,88.301,88.274,11.32836395]
[1770578563160,2.98087666,88.299,88.271,0.26770134]
[1770578563456,2.98087666,88.297,88.271,0.26770134]
[1770578564152,2.98087666,88.296,88.271,0.26770134]
[1770578564554,2.98087666,88.296,88.271,3.07956087]
[1770578566047,2.98087666,88.296,88.271,0.26770134]
[1770578566252,2.98431869,88.294,88.258,2.91241029]
[1770578566651,5.13098341,88.29,88.258,2.91241029]
[1770578566962,2.98431869,88.289,88.258,2.91241029]
[1770578569362,2.98431869,88.287,88.26,5.13098341]
[1770578569738,2.98431869,88.287,88.26,8.0433937]
[1770578569963,2.98431869,88.287,88.26,2.91241029]
[1770578570960,2.98431869,88.287,88.251,0.26770134]
[1770578571163,2.98431869,88.259,88.228,11.33421494]
[1770578571457,2.98431869,88.259,88.224,2.91241029]
[1770578571458,2.98431869,88.255,88.224,2.91241029]
[1770578572350,2.98431869,88.253,88.225,11.3346557]
[1770578572668,2.98431869,88.253,88.225,14.24706599]
[1770578572961,5.13098341,88.23,88.191,2.91241029]
[1770578573263,2.98431869,88.228,88.197,2.91241029]
[1770578574040,2.98431869,88.228,88.19,3.11241029]
[1770578574249,2.98431869,88.219,88.19,3.11241029]
[1770578574855,2.98431869,88.219,88.19,0.2]
[1770578575362,2.98431869,88.217,88.19,0.2]
[1770578575952,5.13098341,88.21,88.19,0.2]
[1770578576370,2.98431869,88.208,88.19,0.2]
[1770578576964,2.98431869,88.199,88.19,0.2]
[1770578577661,2.98431869,88.199,88.18,0.2]
[1770578579260,2.98431869,88.197,88.18,0.2]
[1770578579764,2.98431869,88.21,88.181,2.91241029]
[1770578580070,8.1153021,88.21,88.181,2.91241029]
[1770578580273,2.98431869,88.208,88.18,0.2]
[1770578581268,2.98431869,88.208,88.18,11.54034042]
[1770578581483,2.98431869,88.208,88.18,0.2]
[1770578582274,2.98431869,88.206,88.18,0.2]
[1770578582484,2.98431869,88.199,88.18,0.2]
[1770578583276,2.98431869,88.206,88.181,2.91241029]
[1770578585779,28.32969221,88.247,88.183,2.91241029]
[1770578585955,5.13098341,88.24,88.201,2.91241029]
[1770578586359,5.13098341,88.22,88.183,2.91241029]
[1770578586559,36.94,88.219,88.183,2.91241029]
[1770578586786,5.13098341,88.21,88.183,2.91241029]
[1770578587281,5.13098341,88.2,88.18,0.2]
[1770578587763,2.98431869,88.199,88.18,0.2]
[1770578588581,2.98431869,88.197,88.18,0.2]
[1770578588961,2.98431869,88.189,88.17,0.2]
[1770578589161,2.98431869,88.187,88.17,0.2]
[1770578589362,36.96,88.186,88.17,0.2]
[1770578590687,36.98,88.185,88.17,3.11241029]
[1770578590885,11.33855581,88.195,88.17,3.11241029]
[1770578591075,37.0,88.185,88.17,3.11241029]
[1770578591684,37.0,88.185,88.17,0.2]
[1770578591885,37.02,88.184,88.17,0.2]
[1770578592195,2.98431869,88.183,88.17,0.2]
[1770578592685,2.98431869,88.183,88.16,0.2]
[1770578592890,2.98431869,88.169,88.135,14.25855925]
[1770578593086,37.04,88.168,88.136,2.91241029]
[1770578593395,40.02431869,88.167,88.136,2.91241029]
[1770578593991,40.02431869,88.167,88.135,11.34614896]
[1770578593992,37.04,88.166,88.141,2.91241029]
[1770578594968,2.77279607,88.165,88.133,2.76093717]
[1770578595275,2.91353743,88.164,88.133,2.76093717]
[1770578595787,2.91353743,88.159,88.129,2.84385351]
[1770578598196,2.91353743,88.157,88.122,2.84385351]
[1770578598492,2.91353743,88.157,88.124,2.84385351]
[1770578598671,2.91353743,88.157,88.11,5.33098341]
[1770578598672,2.91353743,88.139,88.11,0.2]
[1770578598871,2.91353743,88.137,88.11,0.2]
[1770578599094,37.14,88.138,88.111,2.84385351]
[1770578599783,2.91353743,88.153,88.12,28.37027262]
[1770578599974,31.2,88.155,88.131,2.84385351]
[1770578600889,2.91353743,88.154,88.131,2.84385351]
[1770578601086,2.91353743,88.153,88.122,2.84385351]
[1770578601689,2.91353743,88.153,88.122,14.19166103]
[1770578601889,2.91353743,88.153,88.123,2.84385351]
[1770578603096,11.3440421,88.152,88.123,2.84385351]
[1770578603288,2.91353743,88.151,88.123,2.84385351]
[1770578604320,2.91353743,88.178,88.141,2.84385351]
[1770578604477,2.91353743,88.176,88.141,2.84385351]
[1770578605176,37.24,88.175,88.151,2.84385351]
[1770578606676,37.28,88.179,88.161,2.84385351]
[1770578606988,37.3,88.179,88.161,2.84385351]
[1770578607388,37.3,88.179,88.16,5.14840336]
[1770578607389,2.91353743,88.178,88.16,5.14840336]
[1770578607592,2.91353743,88.177,88.141,2.84385351]
[1770578607780,2.91353743,88.175,88.141,2.84385351]
[1770578609289,2.91353743,88.189,88.151,2.84385351]
[1770578610012,2.91353743,88.189,88.161,2.84385351]
[1770578611686,2.91353743,88.198,88.161,2.84385351]
[1770578615515,11.33825413,88.197,88.163,2.84385351]
[1770578615804,2.91353743,88.196,88.171,2.84385351]
[1770578616804,5.14840336,88.21,88.171,2.84385351]
[1770578616996,2.91353743,88.212,88.171,2.84385351]
[1770578617200,2.91353743,88.212,88.18,5.14840336]
[1770578617385,2.91353743,88.229,88.191,2.84385351]
[1770578617706,2.91353743,88.227,88.193,2.84385351]
[1770578618304,2.91353743,88.227,88.201,2.84385351]
[1770578618500,2.91353743,88.227,88.192,11.33889695]
[1770578618707,2.91353743,88.219,88.186,2.84385351]
[1770578618899,2.91353743,88.219,88.189,11.33923909]
[1770578619990,2.91353743,88.209,88.17,2.84385351]
[1770578620190,2.91353743,88.209,88.173,11.34130925]
[1770578621204,11.33684019,88.208,88.173,11.34130925]
[1770578621406,2.91353743,88.207,88.173,11.34130925]
[1770578622521,5.14840336,88.2,88.173,11.34130925]
[1770578622815,2.91353743,88.199,88.173,11.34130925]
[1770578623014,2.91353743,88.199,88.174,2.84385351]
[1770578629817,37.46,88.207,88.181,2.83317854]
[1770578630124,2.90436886,88.206,88.181,2.83317854]
[1770578630325,2.90436886,88.206,88.175,11.34108307]
[1770578631027,2.90436886,88.206,88.175,14.17426161]
[1770578631224,2.90436886,88.199,88.152,2.83317854]
[1770578631413,2.90436886,88.197,88.161,11.34284255]
[1770578631927,2.90436886,88.189,88.161,11.34284255]
[1770578632925,2.90436886,88.187,88.161,11.34284255]
[1770578635117,2.90436886,88.195,88.161,2.83317854]
[1770578638525,11.33863981,88.194,88.161,2.83317854]
[1770578638825,2.90436886,88.195,88.163,2.83317854]
[1770578640831,2.90436886,88.179,88.148,2.83317854]
[1770578641831,2.90436886,88.179,88.151,2.83317854]
[1770578644329,11.34067172,88.179,88.151,2.83317854]
[1770578644517,2.90436886,88.178,88.151,2.83317854]
[1770578644833,2.90436886,88.178,88.14,5.14840336]
[1770578644834,2.90436886,88.159,88.132,2.83317854]
[1770578645042,2.90436886,88.159,88.126,2.83317854]
[1770578645730,2.90436886,88.159,88.136,11.34604187]
[1770578646234,2.90436886,88.166,88.137,2.83317854]
[1770578646436,2.90436886,88.166,88.139,2.83317854]
[1770578649430,2.90436886,88.164,88.139,2.83317854]
[1770578649636,11.34236942,88.165,88.126,14.1805073]
[1770578649637,2.90436886,88.159,88.126,14.1805073]
[1770578650136,2.90436886,88.159,88.126,2.83317854]
[1770578652442,2.90436886,88.149,88.119,2.83317854]
[1770578652928,11.34327003,88.158,88.128,2.83317854]
[1770578653941,2.90436886,88.168,88.131,2.83317854]
[1770578654728,2.90436886,88.166,88.133,2.83317854]
[1770578655241,14.40923566,88.167,88.133,2.83317854]
[1770578656239,14.40923566,88.167,88.13,5.14840336]
[1770578656240,3.06712354,88.174,88.135,2.96454827]
[1770578658249,3.06712354,88.157,88.135,2.96454827]
[1770578658543,3.06712354,88.157,88.128,2.96454827]
[1770578658849,3.06712354,88.157,88.129,2.96454827]
[1770578661551,3.06712354,88.155,88.129,2.96454827]
[1770578667854,5.14858037,88.16,88.131,2.96454827]
[1770578668735,11.34314136,88.159,88.131,2.96454827]
[1770578669738,11.34198348,88.168,88.133,2.96454827]
[1770578669938,3.06712354,88.167,88.133,2.96454827]
[1770578672659,3.06712354,88.165,88.133,2.96454827]
[1770578673957,3.06712354,88.159,88.133,2.96454827]
[1770578677261,3.06712354,88.159,88.135,2.96454827]
[1770578677956,11.34249807,88.164,88.135,2.96454827]
[1770578678458,5.14858037,88.16,88.135,2.96454827]
[1770578678644,3.06712354,88.159,88.135,2.96454827]
[1770578680243,3.06712354,88.159,88.137,2.96454827]
[1770578680561,14.40826339,88.175,88.137,2.96454827]
[1770578680937,3.06712354,88.197,88.141,2.96454827]
[1770578681142,14.40537767,88.197,88.151,2.96454827]
[1770578681459,3.06712354,88.196,88.151,2.96454827]
[1770578681668,3.06712354,88.194,88.153,2.96454827]
[1770578682358,3.06712354,88.192,88.153,2.96454827]
[1770578683168,3.06712354,88.192,88.155,2.96454827]